fUSD/lending_fUSD_20250109
["ID","MTS","AMOUNT","RATE_DAILY","PERIOD"]
[348209043,1736391059355,-500.0,0.00011915,2]
[348209044,1736391059364,-500.0,0.00011915,2]
[348209045,1736391059373,-500.0,0.00011915,2]
[348209046,1736391059383,-1207.39,0.00011915,2]
[348209047,1736391059392,-500.0,0.00011915,2]
[348209048,1736391059401,-500.0,0.00011915,2]
[348209049,1736391059411,-1041.47,0.00011915,2]
[348209050,1736391059420,-566.21,0.00011915,2]
[348209051,1736391059429,-3044.14,0.00011915,2]
[348209052,1736391059439,-500.0,0.00011915,2]
[348209053,1736391059449,-500.0,0.00011915,2]
[348209054,1736391059458,-500.0,0.00011915,2]
[348209055,1736391059468,-500.0,0.00011915,2]
[348209056,1736391059477,-500.0,0.00011915,2]
[348209057,1736391059487,-500.0,0.00011915,2]
[348209058,1736391059496,-500.0,0.00011915,2]
[348209059,1736391059504,-500.0,0.00011915,2]
[348209060,1736391059514,-500.0,0.00011915,2]
[348209061,1736391059523,-500.0,0.00011915,2]
[348209062,1736391059681,-500.0,0.00011915,2]
[348209063,1736391059692,-545.16,0.00011915,2]
[348209064,1736391059707,-500.0,0.00011915,2]
[348209065,1736391059722,-500.0,0.00011915,2]
[348209066,1736391059732,-717.41,0.00011915,2]
[348209067,1736391059743,-500.0,0.00011915,2]
[348209068,1736391059754,-1933.11,0.00011915,2]
[348209069,1736391059765,-1249.27,0.00011915,2]
[348209070,1736391059775,-500.0,0.00011915,2]
[348209071,1736391059785,-500.0,0.00011915,2]
[348209072,1736391059796,-2301.04,0.00011915,2]
[348209073,1736391059807,-549.45,0.00011915,2]
[348209074,1736391059817,-500.0,0.00011915,2]
[348209075,1736391059827,-500.0,0.00011915,2]
[348209076,1736391059838,-1105.18,0.00011915,2]
[348209077,1736391059849,-500.0,0.00011915,2]
[348209078,1736391059860,-500.0,0.00011915,2]
[348209079,1736391059870,-1691.78,0.00011915,2]
[348209080,1736391059879,-682.17,0.00011915,2]
[348209081,1736391059892,-507.35,0.00011915,2]
[348209082,1736391059902,-500.0,0.00011915,2]
[348209083,1736391059913,-1703.58,0.00011915,2]
[348209084,1736391059924,-758.63,0.00011915,2]
[348209085,1736391059935,-500.0,0.00011915,2]
[348209086,1736391059946,-500.0,0.00011915,2]
[348209087,1736391059957,-500.0,0.00011915,2]
[348209088,1736391059967,-1254.93,0.00011915,2]
[348209089,1736391059976,-740.37,0.00011915,2]
[348209090,1736391059986,-1657.62,0.00011915,2]
[348209091,1736391059996,-2481.47,0.00011915,2]
[348209092,1736391060007,-513.76367696,0.00011915,2]
[348209093,1736391060018,-500.0,0.00011915,2]
[348209094,1736391060028,-692.75,0.00011915,2]
[348209095,1736391060038,-1709.51,0.00011915,2]
[348209096,1736391060048,-500.0,0.00011915,2]
[348209097,1736391060059,-500.0,0.00011915,2]
[348209098,1736391060069,-500.0,0.00011915,2]
[348209099,1736391060080,-582.01,0.00011915,2]
[348209100,1736391060090,-652.67,0.00011916,2]
[348209101,1736391060101,-500.0,0.00011916,2]
[348209102,1736391060111,-590.79,0.00011916,2]
[348209103,1736391060121,-500.0,0.00011916,2]
[348209104,1736391060132,-662.49,0.00011916,2]
[348209105,1736391060142,-630.643825,0.00011916,2]
[348209106,1736391060152,-500.0,0.00011916,2]
[348209107,1736391060162,-160.13800619,0.00011916,2]
[348209108,1736391060171,-500.0,0.00011916,2]
[348209109,1736391060180,-500.0,0.00011916,2]
[348209110,1736391060190,-500.0,0.00011916,2]
[348209111,1736391060199,-500.0,0.00011916,2]
[348209112,1736391060210,-630.31,0.00011916,2]
[348209113,1736391060220,-1257.26,0.00011916,2]
[348209114,1736391060230,-500.0,0.00011916,2]
[348209115,1736391060241,-1849.27,0.00011916,2]
[348209116,1736391060250,-949.08,0.00011917,2]
[348209117,1736391060260,-500.0,0.00011917,2]
[348209118,1736391060270,-596.23,0.00011917,2]
[348209119,1736391060280,-779.79,0.00011917,2]
[348209120,1736391060290,-1022.27,0.00011917,2]
[348209121,1736391060300,-531.79,0.00011917,2]
[348209122,1736391060310,-798.09,0.00011917,2]
[348209123,1736391060320,-1283.9,0.00011917,2]
[348209124,1736391060330,-1872.27,0.00011917,2]
[348209125,1736391060340,-856.53,0.00011917,2]
[348209126,1736391060350,-1309.76,0.00011917,2]
[348209127,1736391060360,-917.15,0.00011917,2]
[348209128,1736391060370,-622.53,0.00011917,2]
[348209129,1736391060381,-1102.42,0.00011917,2]
[348209130,1736391060390,-600.1,0.00011917,2]
[348209131,1736391060400,-963.46,0.00011917,2]
[348209132,1736391060410,-623.47,0.00011917,2]
[348209133,1736391060420,-877.77,0.00011917,2]
[348209134,1736391060430,-1224.09,0.00011917,2]
[348209135,1736391060440,-1600.42,0.00011917,2]
[348209136,1736391060450,-1202.63,0.00011917,2]
[348209137,1736391060460,-648.68,0.00011917,2]
[348209138,1736391060470,-2760.29,0.00011917,2]
[348209139,1736391060480,-579.84,0.00011917,2]
[348209140,1736391060490,-500.0,0.00011917,2]
[348209141,1736391060500,-521.48079407,0.00011917,2]
[348209142,1736391060510,-500.0,0.00011917,2]
[348209143,1736391060521,-1218.42,0.00011917,2]
[348209144,1736391060530,-505.32,0.00011917,2]
[348209145,1736391060541,-778.11,0.00011917,2]
[348209146,1736391060551,-500.0,0.00011917,2]
[348209147,1736391060565,-150.0,0.00011924,2]
[348209148,1736391060575,-207.68032069,0.00011938,2]
[348209149,1736391060586,-150.0,0.00011955,2]
[348209150,1736391060596,-313432.0,0.00012,2]
[348209151,1736391060606,-43709.0,0.00012,2]
[348209152,1736391060618,-207.68032069,0.00012045,2]
[348209153,1736391060629,-531.79,0.00012054,2]
[348209154,1736391060640,-200.0,0.00012055,2]
[348209155,1736391060651,-150.0,0.00012058,2]
[348209156,1736391060661,-1513.03,0.00012091,2]
[348209157,1736391060671,-1483.16,0.00012091,2]
[348209158,1736391060682,-794.11,0.00012091,2]
[348209159,1736391060692,-507.57,0.00012091,2]
[348209160,1736391060703,-1696.32,0.00012091,2]
[348209161,1736391060713,-528.48,0.00012091,2]
[348209162,1736391060723,-1146.33,0.00012091,2]
[348209163,1736391060733,-1011.46,0.00012091,2]
[348209164,1736391060743,-500.0,0.00012091,2]
[348209165,1736391060753,-500.0,0.00012091,2]
[348209166,1736391060764,-1159.44,0.00012091,2]
[348209167,1736391060775,-3737.62,0.00012091,2]
[348209168,1736391060785,-150.0,0.00012092,2]
[348209169,1736391060795,-150.0,0.00012101,2]
[348209170,1736391060805,-150.0,0.00012131,2]
[348209171,1736391060815,-8543.44185933,0.00012135,4]
[348209172,1736391060825,-150.0,0.00012143,2]
[348209173,1736391060835,-150.0,0.00012146,2]
[348209174,1736391060846,-207.68032069,0.00012152,2]
[348209175,1736391060856,-150.0,0.0001216,2]
[348209176,1736391060866,-999.0,0.00012164,2]
[348209177,1736391060876,-999.0,0.00012164,2]
[348209178,1736391060886,-999.0,0.00012164,2]
[348209179,1736391060899,-999.0,0.00012164,2]
[348209180,1736391060910,-999.0,0.00012164,2]
[348209181,1736391060920,-999.0,0.00012164,2]
[348209182,1736391060931,-999.0,0.00012164,2]
[348209183,1736391060941,-999.0,0.00012164,2]
[348209184,1736391060952,-999.0,0.00012164,2]
[348209185,1736391060963,-999.0,0.00012164,2]
[348209186,1736391060973,-999.0,0.00012164,2]
[348209187,1736391060984,-999.0,0.00012164,2]
[348209188,1736391060994,-999.0,0.00012164,2]
[348209189,1736391061004,-999.0,0.00012164,2]
[348209190,1736391061014,-999.0,0.00012164,2]
[348209191,1736391061024,-999.0,0.00012164,2]
[348209192,1736391061034,-999.0,0.00012164,2]
[348209193,1736391061044,-999.0,0.00012164,2]
[348209194,1736391061054,-999.0,0.00012164,2]
[348209195,1736391061064,-999.0,0.00012164,2]
[348209196,1736391061074,-381.58683313,0.00012164,2]
[348209197,1736391061084,-326.32547217,0.00012189,2]
[348209198,1736391061094,-500.0,0.00012189,2]
[348209199,1736391061103,-500.0,0.00012189,2]
[348209200,1736391061113,-500.0,0.00012189,2]
[348209201,1736391061123,-500.0,0.00012189,2]
[348209202,1736391061133,-500.0,0.00012189,2]
[348209203,1736391061142,-500.0,0.00012189,2]
[348209204,1736391061153,-501.52,0.00012189,2]
[348209205,1736391061162,-500.0,0.00012189,2]
[348209206,1736391061173,-944.17,0.00012189,2]
[348209207,1736391061182,-500.0,0.00012189,2]
[348209208,1736391061192,-500.0,0.00012189,2]
[348209209,1736391061202,-500.0,0.00012189,2]
[348209210,1736391061211,-500.0,0.00012189,2]
[348209211,1736391061220,-1207.39,0.00012189,2]
[348209212,1736391061230,-500.0,0.00012189,2]
[348209213,1736391061239,-500.0,0.00012189,2]
[348209214,1736391061252,-1041.47,0.00012189,2]
[348209215,1736391061262,-566.21,0.00012189,2]
[348209216,1736391061271,-3044.14,0.00012189,2]
[348209217,1736391061281,-500.0,0.00012189,2]
[348209218,1736391061290,-500.0,0.00012189,2]
[348209219,1736391061308,-500.0,0.00012189,2]
[348209220,1736391061327,-500.0,0.00012189,2]
[348209221,1736391061344,-500.0,0.00012189,2]
[348209222,1736391061356,-500.0,0.00012189,2]
[348209223,1736391061371,-500.0,0.00012189,2]
[348209224,1736391061385,-500.0,0.00012189,2]
[348209225,1736391061400,-500.0,0.00012189,2]
[348209226,1736391061414,-443.33036048,0.00012189,2]
[348209227,1736391061430,-500.0,0.00012189,2]
[348209228,1736391061443,-545.16,0.00012189,2]
[348209229,1736391061454,-500.0,0.00012189,2]
[348209230,1736391061467,-500.0,0.00012189,2]
[348209231,1736391061481,-717.41,0.00012189,2]
[348209232,1736391061495,-500.0,0.00012189,2]
[348209233,1736391061508,-1933.11,0.00012189,2]
[348209234,1736391061523,-1249.27,0.00012189,2]
[348209235,1736391061538,-500.0,0.00012189,2]
[348209236,1736391061553,-500.0,0.00012189,2]
[348209237,1736391061568,-2301.04,0.00012189,2]
[348209238,1736391061582,-549.45,0.00012189,2]
[348209239,1736391061597,-500.0,0.00012189,2]
[348209240,1736391061611,-500.0,0.00012189,2]
[348209241,1736391061624,-1105.18,0.00012189,2]
[348209242,1736391061638,-500.0,0.00012189,2]
[348209243,1736391061654,-500.0,0.00012189,2]
[348209244,1736391061671,-1691.78,0.00012189,2]
[348209245,1736391061686,-682.17,0.00012189,2]
[348209246,1736391061697,-507.35,0.00012189,2]
[348209247,1736391061708,-500.0,0.00012189,2]
[348209248,1736391061722,-1703.58,0.00012189,2]
[348209249,1736391061739,-758.63,0.00012189,2]
[348209250,1736391061752,-500.0,0.00012189,2]
[348209251,1736391061763,-500.0,0.00012189,2]
[348209252,1736391061775,-500.0,0.00012189,2]
[348209253,1736391061787,-1254.93,0.00012189,2]
[348209254,1736391061803,-740.37,0.00012189,2]
[348209255,1736391061815,-1657.62,0.00012189,2]
[348209256,1736391061826,-2481.47,0.00012189,2]
[348209257,1736391061836,-500.0,0.00012189,2]
[348209258,1736391061852,-692.75,0.00012189,2]
[348209259,1736391061864,-1709.51,0.00012189,2]
[348209260,1736391061876,-500.0,0.00012189,2]
[348209261,1736391061893,-500.0,0.00012189,2]
[348209262,1736391061907,-500.0,0.00012189,2]
[348209263,1736391061920,-582.01,0.00012189,2]
[348209264,1736391061935,-652.67,0.0001219,2]
[348209265,1736391061947,-500.0,0.0001219,2]
[348209266,1736391061960,-590.79,0.0001219,2]
[348209267,1736391061974,-500.0,0.0001219,2]
[348209268,1736391061987,-662.49,0.0001219,2]
[348209269,1736391062000,-500.0,0.0001219,2]
[348209270,1736391062013,-500.0,0.0001219,2]
[348209271,1736391062026,-500.0,0.0001219,2]
[348209272,1736391062038,-500.0,0.0001219,2]
[348209273,1736391062050,-500.0,0.0001219,2]
[348209274,1736391062062,-630.31,0.0001219,2]
[348209275,1736391062075,-1257.26,0.0001219,2]
[348209276,1736391062087,-500.0,0.0001219,2]
[348209277,1736391062099,-1849.27,0.0001219,2]
[348209278,1736391062111,-151.0,0.00012191,2]
[348209279,1736391062123,-949.08,0.00012191,2]
[348209280,1736391062135,-500.0,0.00012191,2]
[348209281,1736391062147,-596.23,0.00012191,2]
[348209282,1736391062159,-779.79,0.00012191,2]
[348209283,1736391062171,-1022.27,0.00012191,2]
[348209284,1736391062183,-531.79,0.00012191,2]
[348209285,1736391062195,-798.09,0.00012191,2]
[348209286,1736391062207,-1283.9,0.00012191,2]
[348209287,1736391062218,-1872.27,0.00012191,2]
[348209288,1736391062229,-151.0,0.00012191,2]
[348209289,1736391062241,-163.837636,0.00012191,2]
[348209290,1736391062252,-856.53,0.00012191,2]
[348209291,1736391062264,-1309.76,0.00012191,2]
[348209292,1736391062275,-917.15,0.00012191,2]
[348209293,1736391062287,-622.53,0.00012191,2]
[348209294,1736391062299,-1102.42,0.00012191,2]
[348209295,1736391062310,-600.1,0.00012191,2]
[348209296,1736391062322,-963.46,0.00012191,2]
[348209297,1736391062334,-877.77,0.00012191,2]
[348209298,1736391062346,-623.47,0.00012191,2]
[348209299,1736391062358,-1224.09,0.00012191,2]
[348209300,1736391062370,-1600.42,0.00012191,2]
[348209301,1736391062382,-1202.63,0.00012191,2]
[348209302,1736391062394,-648.68,0.00012191,2]
[348209303,1736391062405,-2760.29,0.00012191,2]
[348209304,1736391062417,-579.84,0.00012191,2]
[348209305,1736391062429,-508.28837306,0.00012191,2]
[348209306,1736391062440,-500.0,0.00012191,2]
[348209307,1736391062452,-1218.42,0.00012191,2]
[348209308,1736391062464,-505.32,0.00012191,2]
[348209309,1736391062476,-778.11,0.00012191,2]
[348209310,1736391062487,-500.0,0.00012191,2]
[348209311,1736391062499,-1265.92312167,0.000122,2]
[348209312,1736391062510,-150.0,0.00012238,2]
[348209313,1736391062521,-207.68032069,0.00012259,2]
[348209314,1736391062533,-13738.44180308,0.0001229,2]
[348209315,1736391062545,-11000.0,0.0001229,2]
[348209316,1736391062557,-1381.3435767,0.00012292,2]
[348209317,1736391062569,-1451.2549231,0.00012292,2]
[348209318,1736391062581,-1521.1662696,0.00012292,2]
[348209319,1736391062592,-1591.077616,0.00012292,2]
[348209320,1736391062604,-1042.3614177,0.00012292,2]
[348209321,1736391062616,-1038.2168395,0.00012292,2]
[348209322,1736391062628,-1034.0722613,0.00012292,2]
[348209323,1736391062639,-1029.9276831,0.00012292,2]
[348209324,1736391062654,-3294.5116368,0.00012292,2]
[348209325,1736391062667,-3281.412187,0.00012292,2]
[348209326,1736391062679,-3268.3127371,0.00012292,2]
[348209327,1736391062691,-3255.2132873,0.00012292,2]
[348209328,1736391062703,-4018.5003558,0.00012292,2]
[348209329,1736391062715,-4153.575998,0.00012292,2]
[348209330,1736391062726,-4288.6516403,0.00012292,2]
[348209331,1736391062738,-4423.7272825,0.00012292,2]
[348209332,1736391062749,-200.12824802,0.00012299,3]
[348209333,1736391062761,-145374.42423638,0.000123,4]
[348209334,1736391063359,-1868.59,0.00011915,2]
[348209335,1736391063368,-18125.67397603,0.000123,4]
[348209336,1736391063645,-500.0,9.899e-05,2]
[348209337,1736391063654,-500.0,0.00010819,2]
[348209338,1736391063664,-381.08541823,0.00011093,2]
[348209339,1736391064027,-500.0,9.899e-05,2]
[348209340,1736391064037,-500.0,9.997e-05,2]
[348209341,1736391064047,-1103.0,0.0001069,2]
[348209342,1736391064056,-118.91458177,0.00011093,2]
[348209343,1736391064066,-500.0,0.00011367,2]
[348209344,1736391064075,-341.43413823,0.00011641,2]
[348209345,1736391064323,-500.0,9.899e-05,2]
[348209346,1736391064333,-500.0,9.997e-05,2]
[348209347,1736391064344,-158.56586177,0.00011641,2]
[348209348,1736391064353,-500.0,0.00011915,2]
[348209349,1736391064363,-1868.59,0.00012189,2]
[348209350,1736391064372,-500.0,0.00012189,2]
[348209351,1736391064383,-13814.43177193,0.000123,4]
[348209352,1736391064394,-178802.95113138,0.000123,4]
[348209353,1736391064404,-390504.3680462,0.000123,2]
[348209354,1736391064423,-251154.36452485,0.000123,2]
[348209355,1736391064484,-4728.77032,0.000123,2]
[348209356,1736391064495,-10853.99999999,0.000123,2]
[348209357,1736391064507,-1129.98732874,0.000123,2]
[348209358,1736391064518,-1116.78320645,0.000123,2]
[348209359,1736391064529,-510614.96592592,0.000123,2]
[348209362,1736391792356,700.0,0.0002,120]
[348209375,1736392170828,867.91,8.219e-05,2]
[348209379,1736392232624,-250.0,9.223e-05,2]
[348209380,1736392232634,-186.89999985,9.267e-05,2]
[348209381,1736392232645,-813.10000015,9.267e-05,2]
[348209382,1736392232655,-211.8,9.324e-05,2]
[348209383,1736392232664,-484.41,9.66e-05,2]
[348209384,1736392232673,-1.56977562,9.791e-05,2]
[348209385,1736392232685,-168.73022438,9.791e-05,2]
[348209386,1736392232694,-343.67293586,9.899e-05,2]
[348209387,1736392232706,-156.32706414,9.899e-05,2]
[348209388,1736392232715,-500.0,9.899e-05,2]
[348209389,1736392232725,-500.0,9.899e-05,2]
[348209390,1736392232735,-500.0,9.899e-05,2]
[348209391,1736392232745,-500.0,9.899e-05,2]
[348209392,1736392232755,-500.0,9.899e-05,2]
[348209393,1736392232764,-255.71903073,9.899e-05,2]
[348209394,1736392232774,-500.0,9.899e-05,2]
[348209395,1736392232783,-500.0,9.899e-05,2]
[348209396,1736392232793,-440.0,9.899e-05,2]
[348209397,1736392232802,-509.1113502,9.899e-05,2]
[348209398,1736392232812,-500.0,9.899e-05,2]
[348209399,1736392232822,-500.0,9.899e-05,2]
[348209400,1736392232833,-500.0,9.899e-05,2]
[348209401,1736392232842,-500.0,9.899e-05,2]
[348209402,1736392232852,-500.0,9.899e-05,2]
[348209403,1736392232861,-500.0,9.899e-05,2]
[348209404,1736392232871,-500.0,9.899e-05,2]
[348209405,1736392232880,-500.0,9.899e-05,2]
[348209406,1736392232890,-500.0,9.899e-05,2]
[348209407,1736392232900,-500.0,9.899e-05,2]
[348209408,1736392232910,-500.0,9.899e-05,2]
[348209409,1736392232920,-500.0,9.899e-05,2]
[348209410,1736392232930,-511.1773408,9.899e-05,2]
[348209411,1736392232940,-500.0,9.899e-05,2]
[348209412,1736392232949,-500.0,9.899e-05,2]
[348209413,1736392232959,-500.0,9.899e-05,2]
[348209414,1736392232968,-500.0,9.899e-05,2]
[348209415,1736392232978,-500.0,9.899e-05,2]
[348209416,1736392232987,-500.0,9.899e-05,2]
[348209417,1736392232996,-500.0,9.899e-05,2]
[348209418,1736392233006,-500.0,9.996e-05,2]
[348209419,1736392233015,-501.49918253,9.997e-05,2]
[348209420,1736392233025,-500.0,9.997e-05,2]
[348209421,1736392233034,-500.0,9.997e-05,7]
[348209422,1736392233043,-500.0,9.997e-05,2]
[348209423,1736392233053,-500.8103923,9.997e-05,2]
[348209425,1736392233063,-276.27341271,9.997e-05,2]
[348209427,1736392233084,-223.72658729,9.997e-05,2]
[348209428,1736392233094,-339.51335732,9.997e-05,2]
[348209429,1736392233105,-225.6763692,9.997e-05,2]
[348209430,1736392233115,-325.32070781,9.997e-05,2]
[348209431,1736392233168,-174.67929219,9.997e-05,2]
[348209432,1736392233178,-500.0,9.997e-05,2]
[348209433,1736392233187,-282.76419549,9.997e-05,2]
[348209434,1736392233197,-500.0,9.997e-05,2]
[348209435,1736392233206,-500.0,9.997e-05,2]
[348209436,1736392233216,-503.1976711,9.997e-05,2]
[348209437,1736392233226,-500.0,9.997e-05,2]
[348209438,1736392233236,-502.45907437,9.997e-05,2]
[348209439,1736392233246,-502.78686687,9.997e-05,2]
[348209440,1736392233259,-501.07641967,9.997e-05,2]
[348209441,1736392233270,-507.88376503,9.997e-05,2]
[348209443,1736392233279,-510.50031591,9.997e-05,2]
[348209445,1736392233289,-500.0,9.997e-05,2]
[348209447,1736392233299,-500.0,9.997e-05,2]
[348209449,1736392233309,-508.66335851,9.997e-05,2]
[348209450,1736392233318,-503.37244404,9.997e-05,2]
[348209452,1736392233328,-500.93806581,9.997e-05,2]
[348209454,1736392233339,-500.0,9.997e-05,2]
[348209456,1736392233349,-500.0,9.997e-05,2]
[348209458,1736392233359,-500.0,9.997e-05,2]
[348209460,1736392233369,-500.84282824,9.997e-05,2]
[348209462,1736392233380,-500.80618125,9.997e-05,2]
[348209464,1736392233389,-504.09894412,9.997e-05,2]
[348209467,1736392233399,-507.11896708,9.997e-05,2]
[348209469,1736392233409,-501.5702134,9.997e-05,2]
[348209471,1736392233418,-500.72720221,9.997e-05,2]
[348209473,1736392233428,-500.0,9.997e-05,2]
[348209475,1736392233437,-507.38829935,9.997e-05,2]
[348209476,1736392233446,-504.2821512,9.997e-05,2]
[348209479,1736392233460,-500.0,9.997e-05,2]
[348209481,1736392233469,-500.0,9.997e-05,2]
[348209483,1736392233479,-500.0,9.997e-05,2]
[348209485,1736392233488,-511.97592318,9.997e-05,2]
[348209487,1736392233497,-508.40151564,9.997e-05,2]
[348209489,1736392233507,-515.03917441,9.997e-05,2]
[348209491,1736392233517,-511.86467872,9.997e-05,2]
[348209492,1736392233527,-500.0,9.997e-05,2]
[348209494,1736392233537,-504.12982717,9.997e-05,2]
[348209495,1736392233547,-500.67037504,9.997e-05,2]
[348209496,1736392233558,-505.81434871,9.997e-05,2]
[348209497,1736392233568,-510.64422736,9.997e-05,2]
[348209498,1736392233578,-500.83743569,9.997e-05,2]
[348209499,1736392233588,-504.22814682,9.997e-05,2]
[348209500,1736392233597,-305.28586455,9.997e-05,2]
[348209501,1736392233606,-500.0,9.997e-05,2]
[348209502,1736392233616,-500.0,9.997e-05,2]
[348209503,1736392233626,-500.0,9.997e-05,2]
[348209504,1736392233635,-322.38101966,9.997e-05,2]
[348209505,1736392233645,-505.60412949,9.997e-05,2]
[348209506,1736392233655,-514.42454255,9.997e-05,2]
[348209507,1736392233665,-500.79023424,9.997e-05,2]
[348209508,1736392233675,-501.38664948,9.997e-05,2]
[348209509,1736392233685,-520.86489836,9.997e-05,2]
[348209510,1736392233695,-500.0,9.997e-05,2]
[348209511,1736392233705,-501.5762525,9.997e-05,2]
[348209512,1736392233714,-500.68244031,9.997e-05,2]
[348209513,1736392233724,-500.0,9.997e-05,2]
[348209514,1736392233734,-191.61132602,9.997e-05,2]
[348209515,1736392233744,-502.49586041,9.997e-05,2]
[348209516,1736392233753,-191.42273035,9.997e-05,2]
[348209517,1736392233763,-504.90580954,9.997e-05,2]
[348209518,1736392233773,-499.93473122,9.997e-05,2]
[348209519,1736392233783,-500.83572953,9.997e-05,2]
[348209520,1736392233792,-502.09272926,9.997e-05,2]
[348209521,1736392233802,-504.3,9.997e-05,2]
[348209522,1736392233812,-500.0,9.997e-05,2]
[348209523,1736392233822,-504.23859232,9.997e-05,2]
[348209524,1736392233831,-501.74123412,9.997e-05,2]
[348209525,1736392233841,-506.39188652,9.997e-05,2]
[348209526,1736392233850,-152.60463908,9.997e-05,2]
[348209527,1736392233859,-506.72313798,9.997e-05,2]
[348209528,1736392233869,-503.04024901,9.997e-05,2]
[348209529,1736392233878,-5039.84902446,9.997e-05,2]
[348209530,1736392233888,-500.0,9.997e-05,2]
[348209531,1736392233897,-511.5040241,9.997e-05,2]
[348209532,1736392233907,-503.50360001,9.997e-05,2]
[348209533,1736392233918,-500.0,9.997e-05,2]
[348209534,1736392233928,-500.0,9.997e-05,2]
[348209535,1736392233938,-505.01346252,9.997e-05,2]
[348209536,1736392233948,-500.0,9.997e-05,2]
[348209537,1736392233958,-503.51420098,9.997e-05,2]
[348209538,1736392233968,-501.72079223,9.997e-05,2]
[348209539,1736392233978,-520.2365813,9.997e-05,2]
[348209540,1736392233988,-500.0,9.997e-05,2]
[348209541,1736392233997,-503.03822239,9.997e-05,2]
[348209542,1736392234007,-513.46220202,9.997e-05,2]
[348209543,1736392234018,-509.43576043,9.997e-05,2]
[348209544,1736392234027,-503.07231393,9.997e-05,2]
[348209545,1736392234038,-502.6213462,9.997e-05,2]
[348209546,1736392234048,-502.04937155,9.997e-05,2]
[348209547,1736392234058,-500.0,9.997e-05,2]
[348209548,1736392234067,-500.0,9.997e-05,2]
[348209549,1736392234078,-503.32032378,9.997e-05,2]
[348209550,1736392234088,-500.0,9.997e-05,2]
[348209551,1736392234098,-853.95,9.997e-05,2]
[348209552,1736392234107,-1465.5,9.997e-05,2]
[348209553,1736392234117,-817.85,9.997e-05,2]
[348209554,1736392234127,-500.0,9.997e-05,2]
[348209555,1736392234137,-500.0,9.997e-05,2]
[348209556,1736392234147,-684.72,9.997e-05,2]
[348209557,1736392234157,-807.44,9.997e-05,2]
[348209558,1736392234167,-631.1,9.997e-05,2]
[348209559,1736392234176,-705.09,9.997e-05,2]
[348209560,1736392234186,-1011.08,9.997e-05,2]
[348209561,1736392234195,-950.4,9.997e-05,2]
[348209562,1736392234205,-1464.93,9.997e-05,2]
[348209563,1736392234215,-500.0,9.997e-05,2]
[348209564,1736392234224,-500.0,9.997e-05,2]
[348209565,1736392234235,-526.31,9.997e-05,2]
[348209566,1736392234244,-673.63,9.997e-05,2]
[348209567,1736392234471,-500.0,9.997e-05,2]
[348209568,1736392234483,-500.0,9.998e-05,2]
[348209569,1736392234493,-500.0,9.998e-05,2]
[348209570,1736392234503,-500.0,9.999e-05,2]
[348209571,1736392234514,-500.0,9.999e-05,2]
[348209572,1736392234524,-500.0,9.999e-05,2]
[348209573,1736392234534,-500.0,9.999e-05,2]
[348209574,1736392234544,-500.0,9.999e-05,2]
[348209575,1736392234554,-500.0,9.999e-05,2]
[348209576,1736392234564,-359.99425379,9.999e-05,2]
[348209577,1736392234575,-500.0,9.999e-05,2]
[348209578,1736392234586,-1150.38,9.999e-05,2]
[348209579,1736392234596,-500.0,9.999e-05,2]
[348209580,1736392234605,-514.41,9.999e-05,2]
[348209581,1736392234615,-500.0,9.999e-05,2]
[348209582,1736392234626,-500.0,9.999e-05,2]
[348209583,1736392234636,-500.0,9.999e-05,2]
[348209584,1736392234645,-994.18,9.999e-05,2]
[348209585,1736392234655,-500.0,9.999e-05,2]
[348209586,1736392234665,-500.0,9.999e-05,2]
[348209587,1736392234674,-500.0,9.999e-05,2]